Workbook

Sheet Sheet1
D1: Greeks of binary asset or nothing call option
B2: BACT | C2: BAPT
A3: S | B3: 70 | C3: 62
A4: σ | B4: 0.32 | C4: 0.32
A5: T | B5: 2 | C5: 2
A6: K | B6: 65 | C6: 55
A7: r | B7: 0.04 | C7: 0.04
A8: Prices
B9: =bac(B3,B4,B5,B6,B7) -> 22.1281197 | C9: =bap(C3,C4,C5,C6,C7) -> 5.632555664
A10: Greeks
B11: BACT | C11: BAPT | D11: Greeks of binary asset or nothing put option
A12: Δ | B12: ϑ
A13: Γ
A14: Θ
A15: ρ
A36: ΔS | B36: BACT(ΔS) | C36: Δ | D36: Γ | E36: ΔT | F36: BACT(ΔT) | G36: Θ | H36: Δσ | I36: BACT(Δσ) | J36: υ | K36: Δr | L36: BACT(Δr) | M36: ρ | O36: ΔS | P36: BACT(ΔS) | Q36: Δ | R36: Γ | S36: ΔT | T36: BACT(ΔT) | U36: Θ | V36: Δσ | W36: BACT(Δσ) | X36: υ | Y36: Δr | Z36: BACT(Δr) | AA36: ρ
A37: =B3-B3/2 -> 35 | B37: =bac(A37,$B$4,$B$5,$B$6,$B$7) -> 0.006952129191 | C37: =B38-B37 -> 0.004428075472 | D37: =C38-C37 -> 0.002315161542 | E37: =B5-B5*1/2 -> 1 | F37: =bac($B$3,$B$4,E37,$B$6,$B$7) -> 33.50911118 | G37: =(F38-F37)/0.1 -> -9.053004819 | H37: =B4-B4/2 -> 0.16 | I37: =bac($B$3,H37,$B$5,$B$6,$B$7) -> 27.32595337 | J37: =(I38-I37)/0.01 -> -29.7162051 | K37: =B7-B7/2 -> 0.02 | L37: =bac($B$3,$B$4,$B$5,$B$6,K37) -> 26.69786574 | M37: =(L38-L37)/0.001 -> -235.5257587 | O37: =C3-C3/2 -> 31 | P37: =bap(O37,$C$4,$C$5,$C$6,$C$7) -> 29.69749727 | Q37: =P38-P37 -> 0.5039041386 | R37: =Q38-Q37 -> -0.125106787 | S37: =C5-C5*1/2 -> 1 | T37: =bac($C$3,$C$4,S37,$C$6,$C$7) -> 33.20779175 | U37: =(T38-T37)/0.1 -> -6.295671464 | V37: =C4-C4/2 -> 0.16 | W37: =bac($C$3,V37,$C$5,$C$6,$C$7) -> 34.09658185 | X37: =(W38-W37)/0.01 -> -85.65861308 | Y37: =C7-C7/2 -> 0.02 | Z37: =bac($C$3,$C$4,$C$5,$C$6,Y37) -> 28.53378666 | AA37: =(Z38-Z37)/0.001 -> -217.437005
A38: =A37+1 -> 36 | B38: =bac(A38,$B$4,$B$5,$B$6,$B$7) -> 0.01138020466 | C38: =B39-B38 -> 0.006743237014 | D38: 0.003265635295 | E38: =E37+0.1 -> 1.1 | F38: =bac($B$3,$B$4,E38,$B$6,$B$7) -> 32.6038107 | G38: =(F39-F38)/0.1 -> -9.732641038 | H38: =H37+0.01 -> 0.17 | I38: =bac($B$3,H38,$B$5,$B$6,$B$7) -> 27.02879132 | J38: =(I39-I38)/0.01 -> -30.52961394 | K38: =K37+0.001 -> 0.021 | L38: =bac($B$3,$B$4,$B$5,$B$6,K38) -> 26.46233998 | M38: =(L39-L38)/0.001 -> -234.8799475 | O38: =O37+1 -> 32 | P38: =bap(O38,$C$4,$C$5,$C$6,$C$7) -> 30.20140141 | Q38: =P39-P38 -> 0.3787973516 | R38: =Q39-Q38 -> -0.1379325636 | S38: =S37+0.1 -> 1.1 | T38: =bac($C$3,$C$4,S38,$C$6,$C$7) -> 32.5782246 | U38: =(T39-T38)/0.1 -> -7.010997912 | V38: =V37+0.01 -> 0.17 | W38: =bac($C$3,V38,$C$5,$C$6,$C$7) -> 33.23999572 | X38: =(W39-W38)/0.01 -> -80.25161442 | Y38: =Y37+0.001 -> 0.021 | Z38: =bac($C$3,$C$4,$C$5,$C$6,Y38) -> 28.31634965 | AA38: =(Z39-Z38)/0.001 -> -217.2281736
A39: =A38+1 -> 37 | B39: =bac(A39,$B$4,$B$5,$B$6,$B$7) -> 0.01812344168 | C39: 0.01000887231 | D39: 0.004495971987 | E39: =E38+0.1 -> 1.2 | F39: 31.63054659 | G39: -10.35168665 | H39: =H38+0.01 -> 0.18 | I39: 26.72349518 | J39: -31.18725289 | K39: =K38+0.001 -> 0.022 | L39: 26.22746003 | M39: -234.2176082 | O39: =O38+1 -> 33 | P39: =bap(O39,$C$4,$C$5,$C$6,$C$7) -> 30.58019876 | Q39: 0.240864788 | R39: =Q40-Q39 -> -0.1480556663 | S39: =S38+0.1 -> 1.2 | T39: 31.87712481 | U39: -7.677383065 | V39: =V38+0.01 -> 0.18 | W39: 32.43747958 | X39: -75.61601795 | Y39: =Y38+0.001 -> 0.022 | Z39: 28.09912148 | AA39: -217.0025888
A40: 38 | B40: 0.02813231399 | C40: 0.0145048443 | D40: 0.006050981809 | E40: 1.3 | F40: 30.59537793 | G40: -10.91134998 | H40: 0.19 | I40: 26.41162265 | J40: -31.71888226 | K40: 0.023 | L40: 25.99324243 | M40: -233.5388909 | O40: 34 | P40: =bap(O40,$C$4,$C$5,$C$6,$C$7) -> 30.82106355 | Q40: 0.09280912174 | R40: -0.1549038228 | S40: 1.3 | T40: 31.1093865 | U40: -8.298541027 | V40: 0.19 | W40: 31.6813194 | X40: -71.60892926 | Y40: 0.023 | Z40: 27.88211889 | AA40: -216.7603033
A41: 39 | B41: 0.04263715828 | C41: 0.02055582611 | D41: 0.007972442059 | E41: 1.4 | F41: 29.50424293 | G41: -11.41135617 | H41: 0.2 | I41: 26.09443383 | J41: -32.1472123 | K41: 0.024 | L41: 25.75970353 | M41: -232.8439488 | O41: 35 | P41: =bap(O41,$C$4,$C$5,$C$6,$C$7) -> 30.91387267 | Q41: -0.06209470104 | R41: -0.1581041487 | S41: 1.4 | T41: 30.2795324 | U41: -8.876188101 | V41: 0.2 | W41: 30.9652301 | X41: -68.11823536 | Y41: 0.024 | Z41: 27.66535859 | AA41: -216.5013736
A42: 40 | B42: 0.06319298439 | C42: 0.02852826816 | D42: 0.01029635433 | E42: 1.5 | F42: 28.36310731 | G42: -11.850415 | H42: 0.21 | I42: 25.77296171 | J42: -32.48982312 | K42: 0.025 | L42: 25.52685959 | M42: -232.1329387 | O42: 36 | P42: =bap(O42,$C$4,$C$5,$C$6,$C$7) -> 30.85177797 | Q42: -0.2201988498 | R42: -0.1574996003 | S42: 1.5 | T42: 29.39191359 | U42: =(T43-T42)/0.1 -> -9.41055408 | V42: 0.21 | W42: 30.28404775 | X42: -65.05514789 | Y42: 0.025 | Z42: 27.44885722 | AA42: -216.2258601
A43: 41 | B43: 0.09172125255 | C43: 0.03882462249 | D43: 0.01305020353 | E43: 1.6 | F43: 27.17806581 | G43: -12.22658189 | H43: 0.22 | I43: 25.44806348 | J43: -32.76050154 | K43: 0.026 | L43: 25.29472665 | M43: -231.4060205 | O43: 37 | P43: =bap(O43,$C$4,$C$5,$C$6,$C$7) -> 30.63157912 | Q43: -0.3776984501 | R43: -0.1531451931 | S43: 1.6 | T43: 28.45085818 | U43: -9.900753328 | V43: 0.22 | W43: 29.63349627 | X43: -62.34872136 | Y43: 0.026 | Z43: 27.23263136 | AA43: -215.9338267
A44: 42 | B44: 0.130545875 | C44: 0.05187482602 | D44: 0.01625041471 | E44: 1.7 | F44: 25.95540762 | G44: -12.53755369 | H44: 0.23 | I44: 25.12045846 | J44: -32.97018871 | K44: 0.027 | L44: 25.06332063 | M44: -230.6633575 | O44: 38 | P44: =bap(O44,$C$4,$C$5,$C$6,$C$7) -> 30.25388067 | Q44: -0.5308436432 | R44: -0.1452872014 | S44: 1.7 | T44: 27.46078285 | U44: -10.34507187 | V44: 0.23 | W44: 29.01000906 | X44: -59.94178771 | Y44: 0.027 | Z44: 27.01669753 | AA44: -215.6253415
A45: 43 | B45: 0.1824207011 | C45: 0.06812524073 | D45: 0.01990019468 | E45: 1.8 | F45: 24.70165226 | G45: -12.7809228 | H45: 0.24 | I45: 24.79075657 | J45: -33.12766285 | K45: 0.028 | L45: 24.83265727 | M45: -229.905116 | O45: 39 | P45: =bap(O45,$C$4,$C$5,$C$6,$C$7) -> 29.72303703 | Q45: -0.6761308446 | R45: -0.1343298509 | S45: 1.8 | T45: 26.42627566 | U45: -10.74120383 | V45: 0.24 | W45: 28.41059118 | X45: -57.78791385 | Y45: 0.028 | Z45: 26.80107219 | AA45: -215.3004761
A46: 44 | B46: 0.2505459418 | C46: 0.08802543541 | D46: 0.0239879203 | E46: 1.9 | F46: 23.42355997 | G46: -12.95440271 | H46: 0.25 | I46: 24.45947995 | J46: -33.24003844 | K46: 0.029 | L46: 24.60275215 | M46: -229.1314656 | O46: 40 | P46: =bap(O46,$C$4,$C$5,$C$6,$C$7) -> 29.04690618 | Q46: -0.8104606955 | R46: -0.1207944869 | S46: 1.9 | T46: 25.35215528 | U46: -11.08645744 | V46: 0.25 | W46: 27.83271204 | X46: -55.84910385 | Y46: 0.029 | Z46: 26.58577171 | AA46: -214.9593059
A47: 45 | B47: 0.3385713772 | C47: 0.1120133557 | D47: 0.02848619613 | E47: 2 | F47: 22.1281197 | G47: -13.05603138 | H47: 0.26 | I47: 24.12707956 | J47: -33.31313614 | K47: 0.03 | L47: 24.37362069 | M47: -228.3425787 | O47: 41 | P47: =bap(O47,$C$4,$C$5,$C$6,$C$7) -> 28.23644549 | Q47: -0.9312551824 | R47: -0.1052759921 | S47: 2 | T47: 24.24350954 | U47: -11.37794266 | V47: 0.26 | W47: 27.274221 | X47: -54.09404796 | Y47: 0.03 | Z47: 26.37081241 | AA47: -214.6019101
A48: 46 | B48: 0.4505847329 | C48: 0.1404995518 | D48: 0.03335165683 | E48: 2.1 | F48: 20.82251656 | G48: -13.08435479 | H48: 0.27 | I48: 23.7939482 | J48: -33.35176034 | K48: 0.031 | L48: 24.14527811 | M48: -227.5386309 | O48: 42 | P48: =bap(O48,$C$4,$C$5,$C$6,$C$7) -> 27.30519031 | Q48: -1.036531175 | R48: -0.08840053078 | S48: 2.1 | T48: 23.10571527 | U48: -11.61274735 | V48: 0.27 | W48: 26.73328052 | X48: -52.4967767 | Y48: 0.031 | Z48: 26.1562105 | AA48: -214.2283713
A49: 47 | B49: 0.5910842848 | C49: 0.1738512087 | D49: 0.03852553749 | E49: 2.2 | F49: 19.51408109 | G49: -13.03859012 | H49: 0.28 | I49: 23.4604306 | J49: -33.35990976 | K49: 0.032 | L49: 23.91773948 | M49: -226.7198006 | O49: 43 | P49: =bap(O49,$C$4,$C$5,$C$6,$C$7) -> 26.26865913 | Q49: -1.124931705 | R49: -0.07078773325 | S49: 2.2 | T49: 21.94444054 | U49: -11.78810525 | V49: 0.28 | W49: 26.20831276 | X49: -51.03561775 | Y49: 0.032 | Z49: 25.94198212 | AA49: -213.8387759
A50: 48 | B50: 0.7649354934 | C50: 0.2123767462 | D50: 0.04393498417 | E50: 2.3 | F50: 18.21022207 | G50: -12.91876634 | H50: 0.29 | I50: 23.1268315 | J50: -33.34093897 | K50: 0.033 | L50: 23.69101968 | M50: -225.886269 | O50: 44 | P50: =bap(O50,$C$4,$C$5,$C$6,$C$7) -> 25.14372743 | Q50: -1.195719439 | R50: -0.05301937438 | S50: 2.3 | T50: 20.76563001 | U50: -11.90155672 | V50: 0.29 | W50: 25.69795658 | X50: -49.69238092 | Y50: 0.033 | Z50: 25.72814335 | AA50: -213.4332141
A51: 49 | B51: 0.9773122396 | C51: 0.2563117303 | D51: 0.04949503078 | E51: 2.4 | F51: 16.91834544 | G51: -12.72583883 | H51: 0.3 | I51: 22.79342211 | J51: -33.29768342 | K51: 0.034 | L51: 23.46513341 | M51: -225.0382202 | O51: 45 | P51: =bap(O51,$C$4,$C$5,$C$6,$C$7) -> 23.94800799 | Q51: -1.248738813 | R51: =Q52-Q51 -> -0.03561559937 | S51: 2.4 | T51: 19.57547434 | U51: -11.95110089 | V51: 0.3 | W51: 25.20103277 | X51: -48.45171654 | Y51: 0.034 | Z51: 25.51471013 | AA51: -213.0117794
A52: 50 | B52: 1.23362397 | C52: 0.3058067611 | D52: 0.05511113002 | E52: 2.5 | F52: 15.64576156 | G52: -12.4617742 | H52: 0.31 | I52: 22.46044527 | J52: -33.23255712 | K52: 0.035 | L52: 23.24009519 | M52: -224.1758409 | O52: 46 | P52: =bap(O52,$C$4,$C$5,$C$6,$C$7) -> 22.69926918 | Q52: -1.284354412 | R52: -0.0190188922 | S52: 2.5 | T52: 18.38036425 | U52: -11.93533701 | V52: 0.31 | W52: 24.7165156 | X52: -47.30060676 | Y52: 0.035 | Z52: 25.30169835 | AA52: -212.5745689
A53: 51 | B53: 1.539430731 | C53: 0.3609178911 | D53: 0.06068209905 | E53: 2.6 | F53: 14.39958414 | G53: -12.12960162 | H53: 0.32 | I53: 22.1281197 | J53: -33.14762964 | K53: 0.036 | L53: 23.01591935 | M53: -223.2993205 | O53: 47 | P53: =bap(O53,$C$4,$C$5,$C$6,$C$7) -> 21.41491476 | Q53: -1.303373305 | R53: -0.003585321841 | S53: 2.6 | T53: 17.18683055 | U53: -11.85359133 | V53: 0.32 | W53: 24.24350954 | X53: -46.22795931 | Y53: 0.036 | Z53: 25.08912379 | AA53: -212.1216833
A54: 52 | B54: 1.900348622 | C54: 0.4215999902 | D54: 0.06610332375 | E54: 2.7 | F54: 13.18662397 | G54: -11.73342747 | H54: 0.33 | I54: 21.79664341 | J54: -33.04468718 | K54: 0.037 | L54: 22.79262003 | M54: -222.4088511 | O54: 48 | P54: =bap(O54,$C$4,$C$5,$C$6,$C$7) -> 20.11154146 | Q54: -1.306958626 | R54: 0.0104178515 | S54: 2.7 | T54: 16.00147141 | U54: -11.70602551 | V54: 0.33 | W54: 23.78122994 | X54: -45.22428106 | Y54: 0.037 | Z54: 24.8770021 | AA54: -211.6532265
A55: 53 | B55: 2.321948612 | C55: 0.4877033139 | D55: 0.07127006072 | E55: 2.8 | F55: 12.01328123 | G55: -11.278411 | H55: 0.34 | I55: 21.46619653 | J55: -32.92528146 | K55: 0.038 | L55: 22.57021118 | M55: -221.504627 | O55: 49 | P55: =bap(O55,$C$4,$C$5,$C$6,$C$7) -> 18.80458283 | Q55: -1.296540775 | R55: 0.02280938697 | S55: 2.8 | T55: 14.83086886 | U55: -11.49372214 | V55: 0.34 | W55: 23.32898713 | X55: -44.28141403 | Y55: 0.038 | Z55: 24.66534888 | AA55: -211.1693062
A56: 54 | B56: 2.809651926 | C56: 0.5589733746 | D56: 0.07608068169 | E56: 2.9 | F56: 10.88544013 | G56: -10.77070013 | H56: 0.35 | I56: 21.13694372 | J56: -32.79076908 | K56: 0.039 | L56: 22.34870655 | M56: -220.5868453 | O56: 50 | P56: =bap(O56,$C$4,$C$5,$C$6,$C$7) -> 17.50804206 | Q56: -1.273731388 | R56: 0.03348736242 | S56: 2.9 | T56: 13.68149665 | U56: -11.21874326 | V56: 0.35 | W56: 22.88617299 | X56: -43.39232066 | Y56: 0.039 | Z56: 24.45417957 | AA56: -210.6700331
A57: 55 | B57: 3.368625301 | C57: 0.6350540563 | D57: 0.08043971912 | E57: 3 | F57: 9.808370115 | G57: -10.21732819 | H57: 0.36 | I57: 20.80903603 | J57: -32.64234337 | K57: 0.04 | L57: 22.1281197 | M57: -219.6557051 | O57: 51 | P57: =bap(O57,$C$4,$C$5,$C$6,$C$7) -> 16.23431067 | Q57: -1.240244025 | R57: 0.04241980369 | S57: 3 | T57: 12.55962232 | U57: -10.88415783 | V57: 0.36 | W57: 22.45224979 | X57: -42.5509081 | Y57: 0.04 | Z57: 24.24350954 | AA57: -210.1555216
A58: 56 | B58: 4.003679357 | C58: 0.7154937754 | D58: 0.08426059271 | E58: 3.1 | F58: 8.786637296 | G58: -9.626073815 | H58: 0.37 | I58: 20.4826126 | J58: -32.48106044 | K58: 0.041 | L58: 21.908464 | M58: -218.7114081 | O58: 52 | P58: =bap(O58,$C$4,$C$5,$C$6,$C$7) -> 14.99406664 | Q58: -1.197824222 | R58: 0.04963376612 | S58: 3.1 | T58: 11.47120654 | U58: -10.49403556 | V58: 0.37 | W58: 22.0267407 | X58: =(W59-W58)/0.01 -> -41.75188371 | Y58: 0.041 | Z58: 24.03335401 | AA58: -209.6258891
A59: 57 | B59: 4.719173133 | C59: 0.7997543682 | D59: 0.0874679224 | E59: 3.2 | F59: 7.824029915 | G59: -9.005288735 | H59: 0.38 | I59: 20.15780199 | J59: -32.30786045 | K59: 0.042 | L59: 21.68975259 | M59: -217.754158 | O59: 53 | P59: =bap(O59,$C$4,$C$5,$C$6,$C$7) -> 13.79624242 | Q59: -1.148190456 | R59: 0.05520381976 | S59: 3.2 | T59: 10.42180299 | U59: -10.05340489 | V59: 0.38 | W59: 21.60922187 | X59: -40.99063565 | Y59: 0.042 | Z59: 23.82372813 | AA59: -209.0812564
A60: 58 | B60: 5.518927501 | C60: 0.8872222906 | D60: 0.08999936095 | E60: 3.3 | F60: 6.923501041 | G60: -8.363699232 | H60: 0.39 | I60: 19.83472339 | J60: -32.12358516 | K60: 0.043 | L60: 21.47199843 | M60: -216.7841607 | O60: 54 | P60: =bap(O60,$C$4,$C$5,$C$6,$C$7) -> 12.64805197 | Q60: -1.092986636 | R60: 0.05924069468 | S60: 3.3 | T60: 9.416462497 | U60: =(T61-T60)/0.1 -> -9.568175104 | V60: 0.39 | W60: 21.19931551 | X60: -40.26313362 | Y60: 0.043 | Z60: 23.61464687 | AA60: -208.5217473
A61: 59 | B61: 6.406149791 | C61: 0.9772216515 | D61: 0.09180690797 | E61: 3.4 | F61: 6.087131118 | G61: -7.710189242 | H61: 0.4 | I61: 19.51348754 | J61: -31.92899251 | K61: 0.044 | L61: 21.25521427 | M61: -215.8016243 | O61: 55 | P61: =bap(O61,$C$4,$C$5,$C$6,$C$7) -> 11.55506533 | Q61: -1.033745941 | R61: 0.06188064724 | S61: 3.4 | T61: 8.459644986 | U61: -9.04502359 | V61: 0.4 | W61: 20.79668418 | X61: -39.56584608 | Y61: 0.044 | Z61: 23.40612512 | AA61: -207.9474892
A62: 60 | B62: 7.383371443 | C62: 1.069028559 | D62: 0.09285769368 | E62: 3.5 | F62: 5.316112194 | G62: -7.053573976 | H62: 0.41 | I62: 19.19419761 | J62: -31.7247687 | K62: 0.045 | L62: 21.03941265 | M62: -214.8067587 | O62: 56 | P62: =bap(O62,$C$4,$C$5,$C$6,$C$7) -> 10.52131939 | Q62: -0.971865294 | R62: 0.06327592616 | S62: 3.5 | T62: 7.555142627 | U62: -8.491251339 | V62: 0.41 | W62: 20.40102571 | X62: -38.89567076 | Y62: 0.045 | Z62: 23.19817763 | AA62: -207.3586121
A63: 61 | B63: 8.452400002 | C63: 1.161886253 | D63: 0.09313424555 | E63: 3.6 | F63: 4.610754796 | G63: -6.402373835 | H63: 0.42 | I63: 18.87694992 | J63: -31.51153829 | K63: 0.046 | L63: 20.82460589 | M63: -213.7997759 | O63: 57 | P63: =bap(O63,$C$4,$C$5,$C$6,$C$7) -> 9.549454095 | Q63: -0.9085893678 | R63: 0.06358655958 | S63: 3.6 | T63: 6.706017493 | U63: -7.914611404 | V63: 0.42 | W63: 20.01206901 | X63: -38.2498763 | Y63: 0.046 | Z63: 22.99081902 | AA63: -206.7552493
A64: 62 | B64: 9.614286256 | C64: 1.255020499 | D64: 0.09263427098 | E64: 3.7 | F64: 3.970517413 | G64: -5.764598641 | H64: 0.43 | I64: 18.56183454 | J64: -31.28987268 | K64: 0.047 | L64: 20.61080611 | M64: -212.7808897 | O64: 58 | P64: =bap(O64,$C$4,$C$5,$C$6,$C$7) -> 8.640864727 | Q64: -0.8450028082 | R64: 0.06297355478 | S64: 3.7 | T64: 5.914556353 | U64: -7.323116634 | V64: 0.43 | W64: 19.62957024 | X64: -37.62605277 | Y64: 0.047 | Z64: 22.78406377 | AA64: -206.1375371
A65: 63 | B65: 10.86930675 | C65: 1.34765477 | D65: 0.09137000604 | E65: 3.8 | F65: 3.394057549 | G65: -5.147551824 | H65: 0.44 | I65: 18.24893581 | J65: -31.06029726 | K65: 0.048 | L65: 20.39802522 | M65: -211.7503155 | O65: 59 | P65: =bap(O65,$C$4,$C$5,$C$6,$C$7) -> 7.795861919 | Q65: -0.7820292535 | R65: 0.06159350201 | S65: 3.8 | T65: 5.18224469 | U65: -6.724834365 | V65: 0.44 | W65: 19.25330972 | X65: -37.0220698 | Y65: 0.048 | Z65: 22.57792623 | AA65: -205.5056148
A66: 64 | B66: 12.21696152 | C66: 1.439024776 | D66: 0.08936719194 | E66: 3.9 | F66: 2.879302366 | G66: -4.557663254 | H66: 0.45 | I66: 17.93833284 | J66: -30.82329744 | K66: 0.049 | L66: 20.18627491 | M66: -210.7082707 | O66: 60 | P66: =bap(O66,$C$4,$C$5,$C$6,$C$7) -> 7.013832666 | Q66: -0.7204357514 | R66: 0.05959450152 | S66: 3.9 | T66: 4.509761253 | U66: -6.127676727 | V66: 0.45 | W66: 18.88308902 | X66: -36.43604081 | Y66: 0.049 | Z66: 22.37242062 | AA66: -204.8596245
A67: 65 | B67: 13.6559863 | C67: 1.528391968 | D67: 0.08666374869 | E67: 4 | F67: 2.423536041 | G67: -4.000357911 | H67: 0.46 | I67: 17.63009987 | J67: -30.57932378 | K67: 0.05 | L67: 19.97556664 | M67: -209.654974 | O67: 61 | P67: =bap(O67,$C$4,$C$5,$C$6,$C$7) -> 6.293396914 | Q67: -0.6608412499 | R67: 0.05711328483 | S67: 4 | T67: 3.89699358 | U67: -5.53919572 | V67: 0.46 | W67: 18.51872861 | X67: -35.86629256 | Y67: 0.05 | Z67: 22.16756099 | AA67: -204.1997112
A68: 66 | B68: 15.18437827 | C68: 1.615055716 | D68: 0.08330821865 | E68: 4.1 | F68: 2.02350025 | G68: -3.479965562 | H68: 0.47 | I68: 17.32430663 | J68: -30.32879632 | K68: 0.051 | L68: 19.76591166 | M68: -208.590646 | O68: 62 | P68: =bap(O68,$C$4,$C$5,$C$6,$C$7) -> 5.632555664 | Q68: -0.6037279651 | R68: 0.05427337397 | S68: 4.1 | T68: 3.343074008 | U68: -4.966392179 | V68: 0.47 | W68: 18.16006568 | X68: -35.31133889 | Y68: 0.051 | Z68: 21.96336128 | AA68: -203.5260227
A69: 67 | B69: 16.79943398 | C69: 1.698363935 | D69: 0.07935805274 | E69: 4.2 | F69: 1.675503694 | G69: -2.999674336 | H69: 0.48 | I69: 17.02101867 | J69: -30.07210832 | K69: 0.052 | L69: 19.55732102 | M69: -207.5155083 | O69: 63 | P69: =bap(O69,$C$4,$C$5,$C$6,$C$7) -> 5.028827699 | Q69: -0.5494545911 | R69: 0.0511841113 | S69: 4.2 | T69: 2.84643479 | U69: -4.415547168 | V69: 0.48 | W69: 17.8069523 | X69: -34.76985822 | Y69: 0.052 | Z69: 21.75983526 | AA69: -202.8387095
A70: 68 | B70: 18.49779792 | C70: 1.777721988 | D70: 0.07487780896 | E70: =E69+0.1 -> 4.3 | F70: 1.37553626 | G70: -2.5615286 | H70: 0.49 | I70: 16.72029758 | J70: -29.80962941 | K70: 0.053 | L70: 19.34980551 | M70: -206.4297844 | O70: 64 | P70: =bap(O70,$C$4,$C$5,$C$6,$C$7) -> 4.479373108 | Q70: -0.4982704798 | R70: 0.0479403934 | S70: =S69+0.1 -> 4.3 | T70: 2.404880074 | U70: -3.89208318 | V70: 0.49 | W70: 17.45925371 | X70: -34.24067406 | Y70: 0.053 | Z70: 21.55699655 | AA70: -202.1379249
A71: 69 | B71: 20.27551991 | C71: 1.852599797 | D71: 0.06993732706 | E71: 4.4 | F71: =bac($B$3,$B$4,E71,$B$6,$B$7) -> 1.1193834 | H71: 0.5 | I71: 16.42220129 | J71: -29.54170835 | K71: 0.054 | L71: 19.14337572 | M71: -205.3336989 | O71: 65 | P71: =bap(O71,$C$4,$C$5,$C$6,$C$7) -> 3.981102628 | Q71: -0.4503300864 | R71: =Q72-Q71 -> 0.0446229524 | S71: =S70+0.1 -> 4.4 | T71: 2.015671756 | V71: 0.5 | W71: 17.11684697 | X71: -33.7227382 | Y71: 0.054 | Z71: 21.35485863 | AA71: -201.4238246
A72: 70 | B72: 22.1281197 | C72: 1.922537124 | D72: 0.06460993634 | H72: =H71+0.01 -> 0.51 | I72: 16.1267842 | J72: -29.26867533 | K72: 0.055 | L72: 18.93804202 | M72: -204.2274774 | O72: 66 | P72: =bap(O72,$C$4,$C$5,$C$6,$C$7) -> 3.530772542 | Q72: -0.405707134 | R72: 0.04129904321 | V72: =V71+0.01 -> 0.51 | W72: 16.77961959 | X72: -33.21511603 | Y72: 0.055 | Z72: 21.1534348 | AA72: -200.6965671
A73: 71 | B73: 24.05065683 | C73: 1.98714706 | D73: 0.05897074467 | H73: 0.52 | I73: 15.83409745 | J73: -28.99084402 | K73: 0.056 | L73: 18.73381455 | M73: -203.111347 | O73: 67 | P73: =bap(O73,$C$4,$C$5,$C$6,$C$7) -> 3.125065408 | Q73: -0.3644080908 | R73: 0.03802341344 | V73: =V72+0.01 -> 0.52 | W73: 16.44746843 | X73: -32.71697378 | Y73: 0.056 | Z73: 20.95273823 | AA73: -199.9563134
A74: 72 | B74: 26.03780389 | C74: 2.046117805 | D74: 0.0530950483 | H74: 0.53 | I74: 15.54418901 | J74: -28.70851327 | K74: 0.057 | L74: 18.5307032 | M74: -201.9855358 | O74: 68 | P74: =bap(O74,$C$4,$C$5,$C$6,$C$7) -> 2.760657317 | Q74: -0.3263846774 | R74: 0.03483945195 | V74: 0.53 | W74: 16.12029869 | X74: -32.22756741 | Y74: 0.057 | Z74: 20.75278192 | AA74: -199.2032267
A75: 73 | B75: 28.08392169 | C75: 2.099212853 | D75: 0.04705689233 | H75: 0.54 | I75: 15.25710388 | J75: -28.42196868 | K75: 0.058 | L75: 18.32871766 | M75: -200.8502729 | O75: 69 | P75: =bap(O75,$C$4,$C$5,$C$6,$C$7) -> 2.43427264 | Q75: -0.2915452254 | R75: 0.03178043144 | V75: 0.54 | W75: 15.79802302 | X75: -31.74623283 | Y75: 0.058 | Z75: 20.55357869 | AA75: -198.437473
A76: 74 | B76: 30.18313454 | C76: 2.146269745 | D76: 0.04092780353 | H76: 0.55 | I76: 14.97288419 | J76: -28.13148383 | K76: 0.059 | L76: 18.12786739 | M76: -199.7057881 | O76: 70 | P76: =bap(O76,$C$4,$C$5,$C$6,$C$7) -> 2.142727414 | Q76: -0.259764794 | R76: 0.02887077804 | V76: 0.55 | W76: 15.48056069 | X76: -31.27237733 | Y76: 0.059 | Z76: 20.35514122 | AA76: -197.6592202
A77: 75 | B77: 32.32940429 | C77: 2.187197549 | D77: 0.03477570831 | H77: 0.56 | I77: 14.69156935 | K77: 0.06 | L77: 17.9281616 | M77: -198.5523125 | O77: 71 | P77: =bap(O77,$C$4,$C$5,$C$6,$C$7) -> 1.88296262 | Q77: -0.230894016 | R77: 0.02612731709 | V77: 0.56 | W77: 15.16783692 | Y77: 0.06 | Z77: 20.157482 | AA77: -196.8686388
A78: 76 | B78: 34.51660184 | C78: =B79-B78 -> 2.221973257 | D78: 0.02866404181 | K78: =K77+0.001 -> 0.061 | L78: 17.72960929 | M78: -197.3900776 | O78: 72 | P78: =bap(O78,$C$4,$C$5,$C$6,$C$7) -> 1.652068604 | Q78: -0.2047666989 | R78: 0.02356045852 | Y78: =Y77+0.001 -> 0.061 | Z78: 19.96061336 | AA78: -196.0659014
A79: 77 | B79: 36.7385751 | C79: 2.250637299 | D79: 0.02265104708 | K79: 0.062 | L79: 17.53221921 | M79: -196.2193158 | O79: 73 | P79: =bap(O79,$C$4,$C$5,$C$6,$C$7) -> 1.447301905 | Q79: -0.1812062403 | R79: 0.02117529651 | Y79: =Y78+0.001 -> 0.062 | Z79: 19.76454746 | AA79: -195.2511826
A80: 78 | B80: 38.9892124 | C80: 2.273288346 | D80: 0.01678925834 | K80: 0.063 | L80: 17.3359999 | M80: -195.04026 | O80: 74 | P80: =bap(O80,$C$4,$C$5,$C$6,$C$7) -> 1.266095665 | Q80: -0.1600309438 | R80: 0.01897260843 | Y80: 0.063 | Z80: 19.56929628 | AA80: -194.4246594
A81: 79 | B81: 41.26250074 | C81: 2.290077604 | D81: 0.01112515773 | K81: 0.064 | L81: 17.14095964 | M81: -193.8531437 | O81: 75 | P81: =bap(O81,$C$4,$C$5,$C$6,$C$7) -> 1.106064721 | Q81: -0.1410583354 | R81: 0.01694974524 | Y81: 0.064 | Z81: 19.37487162 | AA81: -193.5865105
A82: 80 | B82: 43.55257835 | C82: 2.301202762 | D82: 0.00569899163 | K82: 0.065 | L82: 16.94710649 | M82: -192.6582009 | O82: 76 | P82: =bap(O82,$C$4,$C$5,$C$6,$C$7) -> 0.9650063859 | Q82: -0.1241085902 | R82: 0.01510141167 | Y82: 0.065 | Z82: 19.18128511 | AA82: -192.7369167
A83: 81 | B83: 45.85378111 | C83: 2.306901754 | D83: 0.0005447303276 | K83: 0.066 | L83: 16.75444829 | M83: -191.455666 | O83: 77 | P83: =bap(O83,$C$4,$C$5,$C$6,$C$7) -> 0.8408977958 | Q83: -0.1090071785 | R83: 0.01342033883 | Y83: 0.066 | Z83: 18.98854819 | AA83: -191.8760608
A84: 82 | B84: 48.16068286 | C84: 2.307446484 | D84: -0.004309846595 | K84: 0.067 | L84: 16.56299263 | M84: -190.2457736 | O84: 78 | P84: =bap(O84,$C$4,$C$5,$C$6,$C$7) -> 0.7318906173 | Q84: -0.09558683966 | R84: 0.01189785491 | Y84: 0.067 | Z84: 18.79667213 | AA84: -191.0041271
A85: 83 | B85: 50.46812935 | C85: 2.303136638 | D85: -0.008842957672 | K85: 0.068 | L85: 16.37274685 | M85: -189.0287587 | O85: 79 | P85: =bap(O85,$C$4,$C$5,$C$6,$C$7) -> 0.6363037776 | Q85: -0.08368898475 | R85: 0.01052436181 | Y85: 0.068 | Z85: 18.605668 | AA85: -190.121302
A86: 84 | B86: 52.77126598 | C86: 2.29429368 | D86: -0.01303853816 | K86: 0.069 | L86: 16.18371809 | M86: -187.8048564 | O86: 80 | P86: =bap(O86,$C$4,$C$5,$C$6,$C$7) -> 0.5526147929 | Q86: -0.07316462294 | R86: 0.009289726512 | Y86: 0.069 | Z86: 18.4155467 | AA86: -189.2277735
A87: 85 | B87: 55.06555966 | C87: 2.281255142 | D87: -0.01688588781 | K87: 0.07 | L87: 15.99591324 | M87: -186.5743019 | O87: 81 | P87: =bap(O87,$C$4,$C$5,$C$6,$C$7) -> 0.4794501699 | Q87: -0.06387489643 | R87: =Q88-Q87 -> 0.00818359666 | Y87: 0.07 | Z87: 18.22631893 | AA87: -188.3237311
A88: 86 | B88: 57.34681481 | C88: 2.264369254 | D88: -0.02037926484 | K88: 0.071 | L88: 15.80933894 | M88: -185.3373304 | O88: 82 | P88: =bap(O88,$C$4,$C$5,$C$6,$C$7) -> 0.4155752735 | Q88: -0.05569129977 | R88: 0.007195649855 | Y88: 0.071 | Z88: 18.0379952 | AA88: -187.4093659
A89: 87 | B89: 59.61118406 | C89: 2.243989989 | D89: -0.02351744187 | K89: 0.072 | L89: 15.62400161 | M89: -184.0941771 | O89: 83 | P89: =bap(O89,$C$4,$C$5,$C$6,$C$7) -> 0.3598839737 | Q89: -0.04849564991 | R89: 0.006315785771 | Y89: 0.072 | Z89: 17.85058583 | AA89: -186.4848707
A90: 88 | B90: 61.85517405 | C90: 2.220472547 | D90: -0.02630323817 | K90: 0.073 | L90: 15.43990743 | M90: -182.845077 | O90: 84 | P90: =bap(O90,$C$4,$C$5,$C$6,$C$7) -> 0.3113883238 | Q90: -0.04217986414 | R90: 0.00553426971 | Y90: 0.073 | Z90: 17.66410096 | AA90: -185.5504394
A91: 89 | B91: 64.0756466 | C91: 2.194169309 | D91: -0.02874304083 | K91: 0.074 | L91: 15.25706235 | M91: -181.5902651 | O91: 85 | P91: =bap(O91,$C$4,$C$5,$C$6,$C$7) -> 0.2692084597 | Q91: -0.03664559443 | R91: 0.004841835478 | Y91: 0.074 | Z91: 17.47855052 | AA91: -184.6062675
A92: 90 | B92: 66.2698159 | C92: 2.165426268 | D92: -0.03084632593 | K92: 0.075 | L92: 15.07547209 | M92: -180.3299758 | O92: 86 | P92: =bap(O92,$C$4,$C$5,$C$6,$C$7) -> 0.2325628652 | Q92: -0.03180375895 | R92: 0.004229754698 | Y92: 0.075 | Z92: 17.29394425 | AA92: -183.6525516
A93: 91 | B93: 68.43524217 | C93: 2.134579942 | D93: -0.03262518903 | K93: 0.076 | L93: 14.89514211 | M93: -179.0644434 | O93: 87 | P93: =bap(O93,$C$4,$C$5,$C$6,$C$7) -> 0.2007591063 | Q93: =P94-P93 -> -0.02757400426 | R93: 0.003689878841 | Y93: 0.076 | Z93: 17.1102917 | AA93: -182.6894898
A94: 92 | B94: 70.56982212 | C94: 2.101954753 | D94: -0.03409389257 | K94: 0.077 | L94: 14.71607767 | M94: -177.7939017 | O94: 88 | P94: =bap(O94,$C$4,$C$5,$C$6,$C$7) -> 0.173185102 | Q94: -0.02388412542 | R94: 0.00321465946 | Y94: 0.077 | Z94: 16.92760221 | AA94: -181.7172811
A95: 93 | B95: 72.67177687 | C95: 2.067860861 | K95: 0.078 | L95: 14.53828377 | M95: -176.5185841 | O95: 89 | P95: =bap(O95,$C$4,$C$5,$C$6,$C$7) -> 0.1493009766 | Q95: -0.02066946596 | Y95: 0.078 | Z95: 16.74588493 | AA95: -180.7361257
A96: 94 | B96: 74.73963773 | K96: =K95+0.001 -> 0.079 | L96: 14.36176518 | M96: -175.2387235 | O96: 90 | P96: =bap(O96,$C$4,$C$5,$C$6,$C$7) -> 0.1286315107 | Y96: =Y95+0.001 -> 0.079 | Z96: 16.56514881 | AA96: -179.7462248
K97: 0.08 | L97: 14.18652646 | Y97: =Y96+0.001 -> 0.08 | Z97: 16.38540258
